fUST/lending_fUST_20240715
["ID","MTS","AMOUNT","RATE_DAILY","PERIOD"]
[332148999,1720990268524,-986.84,0.00027945,2]
[332149000,1720990268533,-4248.18,0.00027945,2]
[332149001,1720990268543,-958.9,0.00027945,2]
[332149002,1720990268552,-485.26,0.00027945,2]
[332149003,1720990268562,-968.12,0.00027945,2]
[332149004,1720990268571,-500.0,0.00027945,2]
[332149005,1720990268581,-602.77,0.00027945,2]
[332149006,1720990268590,-10178.31,0.00027945,2]
[332149007,1720990268599,-519.22837706,0.00027945,2]
[332149008,1720990268609,-1800.07,0.00027945,2]
[332149009,1720990268619,-500.0,0.00027945,2]
[332149010,1720990268632,-154.59445059,0.00027968,2]
[332149011,1720990268642,-25817.15095053,0.0002799,2]
[332149012,1720990268651,-515.8936904,0.00028,2]
[332149013,1720990268662,-2500.0,0.00028,2]
[332149014,1720990268673,-307.28386309,0.00028,30]
[332149015,1720990268685,-3532.67,0.00028,2]
[332149016,1720990268694,-1000.0,0.00028,28]
[332149017,1720990268704,-902.55200027,0.00028109,2]
[332149018,1720990268716,-367.400025,0.0002818,2]
[332149019,1720990268726,-157.80959748,0.00028206,2]
[332149020,1720990268736,-500.0,0.00028219,2]
[332149021,1720990268745,-500.0,0.00028219,2]
[332149022,1720990268755,-151.0,0.00028219,7]
[332149023,1720990268764,-574.24,0.00028219,4]
[332149024,1720990268773,-500.0,0.00028219,2]
[332149025,1720990268782,-500.0,0.00028219,2]
[332149026,1720990268791,-525.25,0.00028219,2]
[332149027,1720990268800,-282.22730886,0.00028219,2]
[332149028,1720990268810,-500.0,0.00028219,2]
[332149029,1720990268820,-706.67,0.00028219,2]
[332149030,1720990268829,-986.84,0.00028219,2]
[332149031,1720990268840,-4248.18,0.00028219,2]
[332149032,1720990268854,-958.9,0.00028219,2]
[332149033,1720990268863,-968.12,0.00028219,2]
[332149034,1720990268873,-500.0,0.00028219,2]
[332149035,1720990268882,-602.77,0.00028219,2]
[332149036,1720990268894,-10178.31,0.00028219,2]
[332149037,1720990268905,-1800.07,0.00028219,2]
[332149038,1720990268916,-500.0,0.00028219,2]
[332149039,1720990268929,-222.4,0.00028379,3]
[332149040,1720990268941,-150.0,0.00028431,2]
[332149041,1720990268951,-503.0,0.00028431,2]
[332149042,1720990268962,-1407.0,0.00028431,2]
[332149043,1720990268971,-500.0,0.00028493,2]
[332149044,1720990268981,-162.28898872,0.00028493,2]
[332149045,1720990268990,-574.24,0.00028493,4]
[332149046,1720990269000,-500.0,0.00028493,2]
[332149047,1720990269010,-441.64248819,0.00028493,2]
[332149048,1720990269019,-525.25,0.00028493,2]
[332149049,1720990269029,-486.652235,0.00028493,7]
[332149050,1720990269038,-486.652234,0.00028493,7]
[332149051,1720990269047,-500.0,0.00028493,2]
[332149052,1720990269058,-706.67,0.00028493,2]
[332149053,1720990269067,-986.84,0.00028493,2]
[332149054,1720990269079,-4248.18,0.00028493,2]
[332149055,1720990269090,-958.9,0.00028493,2]
[332149056,1720990269101,-968.12,0.00028493,2]
[332149057,1720990269112,-500.0,0.00028493,2]
[332149058,1720990269121,-602.77,0.00028493,2]
[332149059,1720990269132,-10178.31,0.00028493,2]
[332149060,1720990269142,-1800.07,0.00028493,2]
[332149061,1720990269151,-500.0,0.00028493,2]
[332149062,1720990269160,-902.55200027,0.00028652,2]
[332149063,1720990269169,-185.55608289,0.000287,7]
[332149064,1720990269178,-367.400025,0.00028701,2]
[332149065,1720990269187,-500.0,0.00028767,2]
[332149066,1720990269196,-574.24,0.00028767,4]
[332149067,1720990269206,-615.35873573,0.00028767,2]
[332149068,1720990269215,-525.25,0.00028767,2]
[332149069,1720990269225,-262.104553,0.00028767,7]
[332149070,1720990269235,-262.104553,0.00028767,7]
[332149071,1720990269244,-500.0,0.00028767,2]
[332149072,1720990269254,-706.67,0.00028767,2]
[332149073,1720990269263,-986.84,0.00028767,2]
[332149074,1720990269273,-4248.18,0.00028767,2]
[332149075,1720990269282,-958.9,0.00028767,2]
[332149076,1720990269292,-968.12,0.00028767,2]
[332149077,1720990269301,-295.2352694,0.00028767,2]
[332149078,1720990269311,-602.77,0.00028767,2]
[332149079,1720990269320,-10178.31,0.00028767,2]
[332149080,1720990269330,-1800.07,0.00028767,2]
[332149081,1720990269339,-500.0,0.00028767,2]
[332149082,1720990269348,-107358.70423366,0.0002877,2]
[332149083,1720990269357,-151.0,0.0002877,7]
[332149084,1720990269367,-262.104553,0.00028801,7]
[332149085,1720990269376,-262.104545,0.00028801,7]
[332149086,1720990269385,-902.55200027,0.00028822,2]
[332149087,1720990269394,-222.4,0.00028887,3]
[332149088,1720990269403,-151.0,0.00028887,3]
[332149089,1720990269414,-902.55200027,0.00028896,2]
[332149090,1720990269423,-307.09426293,0.000289,2]
[332149091,1720990269433,-154.59445059,0.00028923,2]
[332149092,1720990269442,-1000.0,0.00029,29]
[332149093,1720990269451,-500.0,0.00029041,2]
[332149094,1720990269462,-574.24,0.00029041,4]
[332149095,1720990269472,-525.25,0.00029041,2]
[332149096,1720990269482,-500.0,0.00029041,2]
[332149097,1720990269491,-706.67,0.00029041,2]
[332149098,1720990269500,-986.84,0.00029041,2]
[332149099,1720990269509,-4248.18,0.00029041,2]
[332149100,1720990269519,-958.9,0.00029041,2]
[332149101,1720990269528,-968.12,0.00029041,2]
[332149102,1720990269537,-602.77,0.00029041,2]
[332149103,1720990269547,-10178.31,0.00029041,2]
[332149104,1720990269556,-1800.07,0.00029041,2]
[332149105,1720990269565,-500.0,0.00029041,2]
[332149106,1720990269575,-367.400025,0.00029097,2]
[332149107,1720990269584,-902.55200027,0.00029101,2]
[332149108,1720990269593,-157.80959748,0.00029116,2]
[332149109,1720990269603,-157.80959748,0.00029193,2]
[332149110,1720990269613,-160.22197401,0.000292,2]
[332149111,1720990269622,-153.0,0.00029288,2]
[332149112,1720990269631,-561.22266778,0.00029315,2]
[332149113,1720990269641,-574.24,0.00029315,4]
[332149114,1720990269650,-525.25,0.00029315,2]
[332149115,1720990269661,-500.0,0.00029315,2]
[332149116,1720990269670,-706.67,0.00029315,2]
[332149117,1720990269680,-986.84,0.00029315,2]
[332149118,1720990269689,-4248.18,0.00029315,2]
[332149119,1720990269698,-958.9,0.00029315,2]
[332149120,1720990269709,-968.12,0.00029315,2]
[332149121,1720990269718,-602.77,0.00029315,2]
[332149122,1720990269728,-10178.31,0.00029315,2]
[332149123,1720990269738,-1800.07,0.00029315,2]
[332149124,1720990269747,-500.0,0.00029315,2]
[332149125,1720990269756,-1613.0,0.00029364,2]
[332149126,1720990269766,-222.4,0.00029395,3]
[332149127,1720990269778,-151.0,0.00029395,3]
[332149128,1720990269788,-164.4162941,0.00029431,2]
[332149129,1720990269797,-574.24,0.00029589,4]
[332149130,1720990269807,-525.25,0.00029589,2]
[332149131,1720990269816,-500.0,0.00029589,2]
[332149132,1720990269826,-706.67,0.00029589,2]
[332149133,1720990269836,-986.84,0.00029589,2]
[332149134,1720990269848,-4248.18,0.00029589,2]
[332149135,1720990269858,-958.9,0.00029589,2]
[332149136,1720990269868,-968.12,0.00029589,2]
[332149137,1720990269877,-602.77,0.00029589,2]
[332149138,1720990269888,-10178.31,0.00029589,2]
[332149139,1720990269897,-1800.07,0.00029589,2]
[332149140,1720990269906,-500.0,0.00029589,2]
[332149141,1720990269916,-902.55200027,0.00029616,2]
[332149142,1720990269927,-902.55200027,0.00029729,2]
[332149143,1720990269937,-902.55200027,0.00029787,2]
[332149144,1720990269946,-302.3111812,0.00029793,2]
[332149145,1720990269956,-267.01475721,0.00029803,2]
[332149146,1720990269965,-936.31532871,0.00029803,2]
[332149147,1720990269975,-180.08554877,0.00029803,2]
[332149148,1720990269984,-886.44482597,0.00029803,2]
[332149149,1720990269994,-276.88795357,0.00029803,2]
[332149150,1720990270003,-819.59002386,0.00029803,2]
[332149151,1720990270013,-248.61290859,0.00029813,2]
[332149152,1720990270022,-155.18379875,0.00029813,2]
[332149153,1720990270031,-287.14415021,0.00029813,2]
[332149154,1720990270042,-154.91693737,0.00029823,2]
[332149155,1720990270052,-283.56828739,0.00029823,2]
[332149156,1720990270061,-154.97608719,0.00029823,2]
[332149157,1720990270071,-491.68551027,0.00029823,2]
[332149158,1720990270159,-574.24,0.00029863,4]
[332149159,1720990270168,-525.25,0.00029863,2]
[332149160,1720990270178,-500.0,0.00029863,2]
[332149161,1720990270187,-706.67,0.00029863,2]
[332149162,1720990270196,-986.84,0.00029863,2]
[332149163,1720990270206,-4248.18,0.00029863,2]
[332149164,1720990270217,-958.9,0.00029863,2]
[332149165,1720990270226,-968.12,0.00029863,2]
[332149166,1720990270235,-602.77,0.00029863,2]
[332149167,1720990270245,-10178.31,0.00029863,2]
[332149168,1720990270254,-1800.07,0.00029863,2]
[332149169,1720990270263,-500.0,0.00029863,2]
[332149170,1720990270272,-367.400025,0.00029883,2]
[332149171,1720990270281,-300.7066522,0.00029887,2]
[332149172,1720990270290,-902.55200027,0.00029892,2]
[332149173,1720990270299,-4331.64342127,0.000299,30]
[332149174,1720990270309,-222.4,0.00029902,3]
[332149175,1720990270318,-151.0,0.00029902,3]
[332149176,1720990270327,-920.00965493,0.0003,4]
[332149177,1720990270336,-154.51328316,0.0003,4]
[332149178,1720990270346,-800.69029615,0.0003,2]
[332149179,1720990270354,-1002.24210554,0.0003,7]
[332149180,1720990270363,-907.69838674,0.0003,30]
[332149181,1720990270372,-471.97092202,0.0003,4]
[332149182,1720990270381,-154.5286875,0.0003,4]
[332149183,1720990270391,-946.92245911,0.0003,2]
[332149184,1720990270399,-511.0,0.0003,120]
[332149185,1720990270409,-1000.94042656,0.0003,2]
[332149186,1720990270417,-11839.99814461,0.0003,30]
[332149187,1720990270544,-500.0,0.00024657,2]
[332149188,1720990270554,-500.0,0.00024657,2]
[332149189,1720990270563,-500.0,0.00024657,2]
[332149190,1720990270572,-500.0,0.00024657,2]
[332149191,1720990270582,-286.49385376,0.00024657,2]
[332149192,1720990270591,-151.0,0.00024931,7]
[332149193,1720990270601,-500.0,0.00024931,2]
[332149194,1720990270611,-264.81462848,0.00024931,2]
[332149195,1720990270623,-235.18537152,0.00024931,2]
[332149196,1720990270632,-500.0,0.00024931,2]
[332149197,1720990270642,-151.0,0.00025205,7]
[332149198,1720990270651,-151.0,0.00025205,7]
[332149199,1720990270661,-500.0,0.00025205,2]
[332149200,1720990270671,-151.0,0.00025205,7]
[332149201,1720990270680,-151.0,0.00025205,7]
[332149202,1720990270690,-151.0,0.00025479,7]
[332149203,1720990270701,-500.0,0.00025479,2]
[332149204,1720990270712,-151.0,0.00025479,7]
[332149205,1720990270722,-151.0,0.000255,7]
[332149206,1720990270732,-500.0,0.00025753,2]
[332149207,1720990270742,-1287.87828047,0.00029793,2]
[332149208,1720990270751,-49211.70618608,0.0003,30]
[332149209,1720990270764,-5812.51622582,0.0003,30]
[332149210,1720990270915,-2136.39217822,0.0003,30]
[332149211,1720990270928,-13283.38833703,0.0003,30]
[332149212,1720990271043,-500.0,0.00024657,2]
[332149213,1720990271052,-500.0,0.00024657,2]
[332149214,1720990271062,-151.0,0.00024657,7]
[332149215,1720990271072,-151.0,0.00024657,7]
[332149216,1720990271083,-500.0,0.00024931,2]
[332149217,1720990271093,-151.0,0.00024931,7]
[332149218,1720990271103,-214.100958,0.00024931,7]
[332149219,1720990271112,-660.57992245,0.00024941,2]
[332149220,1720990271122,-500.0,0.00025205,2]
[332149221,1720990271131,-150.0,0.00025431,2]
[332149222,1720990271140,-524.10463166,0.00025479,2]
[332149223,1720990271150,-150.0,0.00028431,2]
[332149224,1720990271159,-3823.03175839,0.0003,30]
[332149225,1720990271170,-28699.1,0.0003,30]
[332149226,1720990271181,-47407.38423443,0.0003,30]
[332149229,1720990477930,-230.48487405,0.00017899,2]
[332149230,1720990477960,-300.0,0.00017989,2]
[332149231,1720990477990,-15876.51512595,0.0001799,2]
[332149232,1720990673920,2895.52266671,0.00016255,4]
[332149233,1720990675700,538.89562,0.00014999,2]
[332149237,1720990778428,1436.35994433,0.00014999,2]
[332149238,1720990868124,155.02881855,0.00014999,2]
[332149239,1720991101396,155.82782177,0.00014999,2]
[332149240,1720991207028,1287.87828047,0.00015,2]
[332149244,1720991253227,-195.98973,0.0001611,2]
[332149245,1720991253251,-300.0,0.00016254,2]
[332149246,1720991253273,-156.3226906,0.00016255,2]
[332149247,1720991253296,-70.98351509,0.00016255,2]
[332149249,1720991287843,172.201614,0.00015597,2]
[332149250,1720991287908,172.201614,0.00015688,2]
[332149253,1720991347164,-172.201614,0.00015778,2]
[332149254,1720991347186,-149.69694249,0.00015868,2]
[332149255,1720991355033,730.24416428,0.00015,2]
[332149256,1720991356894,-22.50467151,0.00015868,2]
[332149258,1720991356930,-172.201614,0.00015959,2]
[332149259,1720991356962,-172.201614,0.00016049,2]
[332149261,1720991356993,-172.201614,0.00016139,2]
[332149262,1720991357024,-172.201614,0.00016229,2]
[332149263,1720991357054,-121.17527531,0.00016254,2]
[332149265,1720991357088,-178.82472469,0.00016254,2]
[332149266,1720991357118,-653.66167813,0.00016255,2]
[332149267,1720991357155,-385.86129351,0.00016255,2]
[332149268,1720991370063,154.57491897,0.00014999,2]
[332149269,1720991370087,781.74040974,0.00014999,2]
[332149270,1720991381424,-873.50308481,0.00016255,2]
[332149271,1720991381490,-873.50308481,0.00016255,2]
[332149272,1720991381543,-311.14205742,0.00016255,2]
[332149273,1720991406305,-300.0,0.00016253,2]
[332149274,1720991406338,-500.0,0.00016254,2]
[332149275,1720991406386,-114.66604935,0.00016254,2]
[332149276,1720991406427,-319.96393677,0.00016254,2]
[332149277,1720991406463,-409.569513,0.00016254,2]
[332149323,1720991432383,-193.4238496,0.00016254,2]
[332149325,1720991432392,-392.40236796,0.00016254,2]
[332149327,1720991432402,-300.0,0.00016254,2]
[332149329,1720991432412,-1737.51734354,0.00016255,2]
[332149333,1720991432439,-413.01757721,0.00016255,2]
[332149335,1720991432450,-777.92281158,0.00016255,2]
[332149337,1720991432462,-11463.59113486,0.00016255,2]
[332149952,1720991438602,-500.0,0.00016254,2]
[332149954,1720991438611,-500.0,0.00016254,2]
[332149956,1720991438621,-500.0,0.00016254,2]
[332149958,1720991438631,-500.0,0.00016254,2]
[332149960,1720991438640,-182.62824905,0.00016254,2]
[332149962,1720991438649,-370.38975585,0.00016254,2]
[332149964,1720991438658,-56.69483304,0.00016255,2]
[332149966,1720991438672,-3648.94882839,0.00016255,2]
[332149968,1720991438682,-28367.25713956,0.00016255,2]
[332149970,1720991438691,-172.201614,0.0001632,2]
[332149972,1720991438700,-172.201614,0.0001641,2]
[332149974,1720991438709,-3000.0,0.00016435,2]
[332149976,1720991438718,-960.9784188,0.00016547,2]
[332149978,1720991438727,-24900.0,0.00016688,2]
[332149980,1720991438737,-300.0,0.00017765,2]
[332149982,1720991438746,-420.0,0.00017879,2]
[332149984,1720991438756,-169.50912591,0.000179,2]
[332149986,1720991438765,-500.0,0.00017989,2]
[332149988,1720991438774,-187.59192716,0.00017989,2]
[332149991,1720991438783,-295.20841149,0.00017989,2]
[332149993,1720991438793,-500.0,0.00017989,2]
[332149994,1720991438802,-516.47778122,0.00017989,2]
[332149996,1720991438811,-500.0,0.00017989,2]
[332149998,1720991438820,-500.0,0.00017989,2]
[332150000,1720991438829,-500.0,0.00017989,2]
[332150002,1720991438838,-500.0,0.00017989,2]
[332150004,1720991438847,-196.24408703,0.00017989,2]
[332150006,1720991438856,-500.0,0.00017989,2]
[332150009,1720991438867,-500.0,0.00017989,2]
[332150010,1720991438875,-500.0,0.00017989,2]
[332150012,1720991438885,-500.0,0.00017989,2]
[332150014,1720991438894,-500.0,0.00017989,2]
[332150016,1720991438904,-500.0,0.00017989,2]
[332150018,1720991438913,-500.0,0.00017989,2]
[332150020,1720991438924,-205.70584756,0.00017989,2]
[332150022,1720991438933,-500.0,0.00017989,2]
[332150024,1720991438942,-500.0,0.00017989,2]
[332150026,1720991438951,-500.0,0.00017989,2]
[332150029,1720991438961,-500.0,0.00017989,2]
[332150030,1720991438971,-500.0,0.00017989,2]
[332150033,1720991438980,-252.44536324,0.00017989,2]
[332150035,1720991438989,-571.09774696,0.00017989,2]
[332150036,1720991438998,-500.0,0.00017989,2]
[332150038,1720991439007,-534.95489724,0.00017989,2]
[332150041,1720991439016,-127539.660098,0.0001799,2]
[332150042,1720991439025,-100000.0,0.00018,2]
[332150045,1720991439035,-812.92138686,0.00019039,3]
[332150047,1720991439044,-196.03927829,0.00019165,2]
[332150049,1720991439054,-196.03927829,0.00019165,2]
[332150051,1720991439064,-63769.8300492,0.00019657,2]
[332150053,1720991439073,-587.0,0.00019667,2]
[332150055,1720991439082,-1500.0,0.00019703,2]
[332150057,1720991439091,-17266.1485105,0.00019703,2]
[332150059,1720991439100,-480.89692261,0.00019703,2]
[332150061,1720991439110,-2121.20832974,0.00019703,2]
[332150063,1720991439119,-929.97008186,0.00019703,2]
[332150065,1720991439127,-500.16014949,0.00019703,2]
[332150067,1720991439137,-403.37885226,0.00019703,2]
[332150069,1720991439146,-150.112233,0.0002,5]
[332150071,1720991439156,-709.588569,0.00021096,2]
[332150073,1720991439165,-823.0,0.00021634,2]
[332150074,1720991439174,-150.112233,0.000218,5]
[332150076,1720991439183,-1151.00905205,0.00021806,2]
[332150078,1720991439192,-539.74424,0.0002217,2]
[332150080,1720991439202,-1151.08161134,0.0002243,2]
[332150082,1720991439211,-150.112233,0.000227,3]
[332150084,1720991439220,-886.44482597,0.00023453,2]
[332150086,1720991439229,-150.112233,0.000236,4]
[332150088,1720991439238,-1152.0,0.00023797,2]
[332150090,1720991439247,-195.98973,0.00024165,2]
[332150092,1720991439256,-63769.8300492,0.0002439,3]
[332150094,1720991439265,-38769.05000366,0.000244,3]
[332150096,1720991439275,-662.80627951,0.00024481,2]
[332150098,1720991439284,-491.68551027,0.00024481,2]
[332150100,1720991439294,-16840.21184453,0.000245,5]
[332150102,1720991439304,-28704.7158077,0.000245,3]
[332150104,1720991439313,-150.112233,0.000246,5]
[332150106,1720991439322,-63769.8300492,0.00024647,3]
[332150108,1720991439331,-500.0,0.00024657,2]
[332150110,1720991439341,-520.75123233,0.00024657,2]
[332150112,1720991439349,-2561.22266778,0.00024657,2]
[332150114,1720991439359,-500.0,0.00024657,2]
[332150116,1720991439368,-500.0,0.00024657,2]
[332150118,1720991439377,-500.0,0.00024657,2]
[332150120,1720991439386,-500.0,0.00024657,2]
[332150122,1720991439395,-500.0,0.00024657,2]
[332150124,1720991439404,-502.74929534,0.00024657,2]
[332150126,1720991439413,-500.0,0.00024657,2]
[332150128,1720991439422,-500.0,0.00024657,2]
[332150130,1720991439431,-500.0,0.00024657,2]
[332150132,1720991439440,-517.8642405,0.00024657,2]
[332150134,1720991439449,-500.0,0.00024657,2]
[332150136,1720991439459,-500.0,0.00024657,2]
[332150138,1720991439468,-500.0,0.00024657,2]
[332150140,1720991439477,-500.0,0.00024657,2]
[332150142,1720991439486,-626.11408275,0.00024657,2]
[332150143,1720991439495,-500.0,0.00024657,2]
[332150145,1720991439505,-500.0,0.00024657,2]
[332150147,1720991439514,-500.0,0.00024657,2]
[332150149,1720991439523,-500.0,0.00024657,2]
[332150151,1720991439532,-500.0,0.00024657,2]
[332150153,1720991439541,-500.0,0.00024657,2]
[332150155,1720991439551,-500.0,0.00024657,2]
[332150157,1720991439560,-500.0,0.00024657,2]
[332150159,1720991439569,-500.0,0.00024657,2]
[332150161,1720991439578,-500.0,0.00024657,2]
[332150163,1720991439588,-5000.0,0.00024657,2]
[332150165,1720991439597,-541.39600267,0.00024657,2]
[332150167,1720991439606,-500.0,0.00024657,2]
[332150169,1720991439616,-504.05971922,0.00024657,2]
[332150171,1720991439625,-500.0,0.00024657,2]
[332150173,1720991439634,-500.0,0.00024657,2]
[332150175,1720991439644,-500.0,0.00024657,2]
[332150177,1720991439653,-500.0,0.00024657,2]
[332150178,1720991439662,-500.0,0.00024657,2]
[332150180,1720991439671,-511.76474404,0.00024657,2]
[332150182,1720991439680,-500.0,0.00024657,2]
[332150184,1720991439689,-500.0,0.00024657,2]
[332150186,1720991439698,-500.0,0.00024657,2]
[332150188,1720991439707,-500.0,0.00024657,2]
[332150190,1720991439716,-500.0,0.00024657,2]
[332150192,1720991439726,-500.0,0.00024657,2]
[332150194,1720991439735,-500.0,0.00024657,2]
[332150196,1720991439744,-500.0,0.00024657,2]
[332150198,1720991439753,-500.0,0.00024657,2]
[332150199,1720991439762,-500.0,0.00024657,2]
[332150201,1720991439771,-512.04936283,0.00024657,2]
[332150203,1720991439781,-500.0,0.00024657,2]
[332150205,1720991439790,-500.0,0.00024657,2]
[332150207,1720991439799,-500.0,0.00024657,2]
[332150209,1720991439809,-500.0,0.00024657,2]
[332150212,1720991439818,-500.0,0.00024657,2]
[332150214,1720991439827,-500.0,0.00024657,2]
[332150216,1720991439836,-377.01129531,0.00024657,2]
[332150218,1720991439845,-500.0,0.00024657,2]
[332150220,1720991439854,-500.0,0.00024657,2]
[332150222,1720991439863,-500.0,0.00024657,2]
[332150224,1720991439873,-500.0,0.00024657,2]
[332150226,1720991439882,-500.0,0.00024657,2]
[332150228,1720991439892,-500.0,0.00024657,2]
[332150230,1720991439902,-500.0,0.00024657,2]
[332150232,1720991439912,-530.63060473,0.00024657,2]
[332150234,1720991439922,-500.0,0.00024657,2]
[332150237,1720991439931,-500.0,0.00024657,2]
[332150239,1720991439940,-500.0,0.00024657,2]
[332150242,1720991439951,-500.0,0.00024657,2]
[332150245,1720991439961,-500.0,0.00024657,2]
[332150248,1720991439972,-502.29191312,0.00024657,2]
[332150250,1720991439982,-500.0,0.00024657,2]
[332150252,1720991439991,-500.0,0.00024657,2]
[332150255,1720991440000,-500.0,0.00024657,2]
[332150258,1720991440010,-500.0,0.00024657,2]
[332150261,1720991440021,-505.71420104,0.00024657,2]
[332150264,1720991440030,-500.0,0.00024657,2]
[332150267,1720991440040,-504.62117378,0.00024657,2]
[332150270,1720991440049,-500.0,0.00024657,2]
[332150273,1720991440060,-500.0,0.00024657,2]
[332150276,1720991440069,-500.0,0.00024657,2]
[332150279,1720991440078,-500.0,0.00024657,2]
[332150282,1720991440088,-500.0,0.00024657,2]
[332150285,1720991440098,-500.0,0.00024657,2]
[332150288,1720991440109,-500.0,0.00024657,2]
[332150293,1720991440119,-500.0,0.00024657,2]
[332150296,1720991440128,-500.0,0.00024657,2]
[332150297,1720991440138,-500.0,0.00024657,2]
[332150299,1720991440147,-500.0,0.00024657,2]
[332150301,1720991440157,-500.0,0.00024657,2]
[332150303,1720991440166,-500.0,0.00024657,2]
[332150305,1720991440176,-500.0,0.00024657,2]
[332150307,1720991440185,-500.0,0.00024657,2]
[332150309,1720991440194,-500.0,0.00024657,2]
[332150311,1720991440204,-500.0,0.00024657,2]
[332150313,1720991440214,-500.0,0.00024657,2]
[332150315,1720991440227,-500.0,0.00024657,2]
[332150317,1720991440237,-500.0,0.00024657,2]
[332150319,1720991440247,-500.0,0.00024657,2]
[332150322,1720991440266,-515.39709604,0.00024657,2]
[332150324,1720991440278,-500.0,0.00024657,2]
[332150326,1720991440287,-500.0,0.00024657,2]
[332150328,1720991440297,-500.0,0.00024657,2]
[332150330,1720991440306,-502.52945941,0.00024657,2]
[332150332,1720991440316,-500.0,0.00024657,2]
[332150334,1720991440326,-500.0,0.00024657,2]
[332150336,1720991440336,-500.0,0.00024657,2]
[332150338,1720991440345,-500.0,0.00024657,2]
[332150340,1720991440355,-500.0,0.00024657,2]
[332150342,1720991440365,-500.0,0.00024657,2]
[332150344,1720991440374,-500.0,0.00024657,2]
[332150346,1720991440384,-500.0,0.00024657,2]
[332150348,1720991440393,-500.0,0.00024657,2]
[332150350,1720991440403,-500.0,0.00024657,2]
[332150352,1720991440412,-500.0,0.00024657,2]
[332150354,1720991440422,-500.0,0.00024657,2]
[332150356,1720991440432,-500.0,0.00024657,2]
[332150358,1720991440442,-500.0,0.00024657,2]
[332150360,1720991440451,-504.93201498,0.00024657,2]
[332150362,1720991440461,-500.0,0.00024657,2]
[332150364,1720991440472,-500.0,0.00024657,2]
[332150366,1720991440482,-505.50530957,0.00024657,2]
[332150368,1720991440491,-500.0,0.00024657,2]
[332150370,1720991440502,-500.0,0.00024657,2]
[332150372,1720991440511,-500.0,0.00024657,2]
[332150374,1720991440522,-500.0,0.00024657,2]
[332150376,1720991440531,-500.0,0.00024657,2]
[332150378,1720991440542,-500.0,0.00024657,2]
[332150380,1720991440552,-500.0,0.00024657,2]
[332150382,1720991440562,-500.0,0.00024657,2]
[332150384,1720991440571,-500.0,0.00024657,2]
[332150386,1720991440584,-500.0,0.00024657,2]
[332150388,1720991440595,-500.0,0.00024657,2]
[332150390,1720991440605,-500.0,0.00024657,2]
[332150392,1720991440615,-500.0,0.00024657,2]
[332150412,1720991440806,-500.0,0.00024657,2]
[332150414,1720991440817,-500.0,0.00024657,2]
[332150416,1720991440828,-500.0,0.00024657,2]
[332150418,1720991440838,-500.0,0.00024657,2]
[332150420,1720991440848,-500.0,0.00024657,2]
[332150422,1720991440857,-500.0,0.00024657,2]
[332150425,1720991440868,-500.0,0.00024657,2]
[332150427,1720991440877,-500.0,0.00024657,2]
[332150429,1720991440887,-500.0,0.00024657,2]
[332150431,1720991440896,-537.50531929,0.00024657,2]
[332150433,1720991440906,-500.0,0.00024657,2]
[332150435,1720991440915,-297.51481992,0.00024657,2]
[332150437,1720991440925,-500.0,0.00024657,2]
[332150439,1720991440935,-500.0,0.00024657,2]
[332150441,1720991440944,-500.0,0.00024657,2]
[332150443,1720991440954,-500.0,0.00024657,2]